fUSD/lending_fUSD_20240412
["ID","MTS","AMOUNT","RATE_DAILY","PERIOD"]
[322226279,1712896237629,-565.41,0.00027397,2]
[322226280,1712896237639,-500.0,0.00027397,2]
[322226281,1712896237650,-500.0,0.00027397,2]
[322226282,1712896237660,-500.0,0.00027397,2]
[322226283,1712896237669,-500.0,0.00027397,2]
[322226284,1712896237678,-506.69478384,0.00027397,2]
[322226285,1712896237687,-270.55725369,0.00027397,2]
[322226286,1712896237696,-500.0,0.00027397,2]
[322226287,1712896237706,-500.0,0.00027397,2]
[322226288,1712896237715,-500.0,0.00027397,2]
[322226289,1712896237725,-501.32972948,0.00027397,2]
[322226291,1712896237735,-517.49657174,0.00027397,2]
[322226292,1712896237745,-383.96574545,0.00027397,2]
[322226293,1712896237756,-500.0,0.00027397,2]
[322226294,1712896237766,-500.0,0.00027397,2]
[322226295,1712896237775,-500.0,0.00027397,2]
[322226296,1712896237785,-154.91176118,0.00027397,2]
[322226297,1712896237795,-500.0,0.00027397,2]
[322226298,1712896237805,-606.89,0.00027397,2]
[322226299,1712896237815,-403.97995189,0.00027397,2]
[322226300,1712896237824,-500.0,0.00027397,2]
[322226301,1712896237836,-500.0,0.00027397,2]
[322226302,1712896237848,-496.21398278,0.00027397,2]
[322226303,1712896237859,-505.55114165,0.00027397,2]
[322226304,1712896237870,-500.0,0.00027397,2]
[322226305,1712896237881,-500.0,0.00027397,2]
[322226306,1712896237891,-500.0,0.00027397,2]
[322226307,1712896237901,-500.0,0.00027397,2]
[322226308,1712896237913,-500.0,0.00027397,2]
[322226309,1712896237924,-500.0,0.00027397,2]
[322226310,1712896237935,-417.62807041,0.00027397,2]
[322226311,1712896237946,-500.0,0.00027397,2]
[322226312,1712896237957,-507.15718219,0.00027397,2]
[322226313,1712896237967,-500.0,0.00027397,2]
[322226314,1712896237977,-500.0,0.00027397,2]
[322226315,1712896237988,-500.0,0.00027397,2]
[322226316,1712896237999,-568.77,0.00027397,2]
[322226317,1712896238010,-500.0,0.00027397,2]
[322226318,1712896238020,-500.0,0.00027397,2]
[322226319,1712896238030,-503.54670609,0.00027397,2]
[322226320,1712896238039,-516.48626242,0.00027397,2]
[322226321,1712896238048,-500.0,0.00027397,2]
[322226322,1712896238058,-500.0,0.00027397,2]
[322226323,1712896238067,-500.0,0.00027397,2]
[322226324,1712896238076,-503.38896151,0.00027397,2]
[322226325,1712896238086,-500.0,0.00027397,2]
[322226326,1712896238095,-500.0,0.00027397,2]
[322226327,1712896238104,-500.0,0.00027397,2]
[322226328,1712896238113,-500.0,0.00027397,2]
[322226329,1712896238122,-500.0,0.00027397,2]
[322226330,1712896238131,-500.0,0.00027397,2]
[322226331,1712896238140,-504.49,0.00027397,2]
[322226332,1712896238149,-500.0,0.00027397,2]
[322226333,1712896238159,-500.0,0.00027397,2]
[322226334,1712896238169,-500.0,0.00027397,2]
[322226335,1712896238178,-500.0,0.00027397,2]
[322226336,1712896238187,-501.34160825,0.00027397,2]
[322226337,1712896238197,-500.0,0.00027397,2]
[322226338,1712896238206,-500.0,0.00027397,2]
[322226339,1712896238215,-500.0,0.00027397,2]
[322226340,1712896238224,-500.0,0.00027397,2]
[322226341,1712896238234,-500.0,0.00027397,2]
[322226342,1712896238243,-500.0,0.00027397,2]
[322226343,1712896238252,-500.0,0.00027397,2]
[322226344,1712896238262,-500.0,0.00027397,2]
[322226345,1712896238271,-500.0,0.00027397,2]
[322226346,1712896238280,-500.0,0.00027397,2]
[322226347,1712896238289,-500.0,0.00027397,2]
[322226348,1712896238299,-500.0,0.00027397,2]
[322226349,1712896238308,-500.0,0.00027397,2]
[322226350,1712896238317,-511.60075942,0.00027397,2]
[322226351,1712896238326,-500.0,0.00027397,2]
[322226352,1712896238335,-500.0,0.00027397,2]
[322226353,1712896238344,-500.0,0.00027397,2]
[322226354,1712896238353,-500.0,0.00027397,2]
[322226355,1712896238363,-500.0,0.00027397,2]
[322226356,1712896238372,-500.0,0.00027397,2]
[322226357,1712896238382,-500.0,0.00027397,2]
[322226358,1712896238392,-505.55185353,0.00027397,2]
[322226359,1712896238402,-501.1789453,0.00027397,2]
[322226360,1712896238411,-150.0,0.00027397,2]
[322226361,1712896238421,-500.0,0.00027397,2]
[322226362,1712896238430,-500.0,0.00027397,2]
[322226363,1712896238439,-299.6677674,0.00027397,2]
[322226364,1712896238448,-500.0,0.00027397,2]
[322226365,1712896238458,-500.0,0.00027397,2]
[322226366,1712896238468,-500.0,0.00027397,2]
[322226367,1712896238481,-525.043854,0.00027397,2]
[322226368,1712896238490,-500.0,0.00027397,2]
[322226369,1712896238499,-500.0,0.00027397,2]
[322226370,1712896238508,-513.80314059,0.00027397,2]
[322226371,1712896238517,-500.0,0.00027397,2]
[322226372,1712896238527,-500.0,0.00027397,2]
[322226373,1712896238536,-586.37011202,0.00027397,2]
[322226374,1712896238545,-500.0,0.00027397,2]
[322226375,1712896238554,-500.0,0.00027397,2]
[322226376,1712896238564,-500.0,0.00027397,2]
[322226377,1712896238574,-503.30655496,0.00027397,2]
[322226378,1712896238583,-500.0,0.00027397,2]
[322226379,1712896238593,-258.91543008,0.00027397,2]
[322226380,1712896238602,-367.35505204,0.00027397,2]
[322226382,1712896238611,-440.80127672,0.00027397,2]
[322226383,1712896238620,-450.44886452,0.00027397,2]
[322226384,1712896238629,-490.43831333,0.00027397,2]
[322226385,1712896238638,-500.0,0.00027397,2]
[322226386,1712896238647,-500.0,0.00027397,2]
[322226387,1712896238656,-500.0,0.00027397,2]
[322226388,1712896238665,-500.53220486,0.00027397,2]
[322226389,1712896238674,-920.51,0.00027397,2]
[322226390,1712896238683,-500.0,0.00027397,2]
[322226391,1712896238692,-624.81,0.00027397,2]
[322226392,1712896238701,-500.0,0.00027397,2]
[322226393,1712896238712,-510.47541366,0.00027397,2]
[322226394,1712896238721,-516.82880248,0.00027397,2]
[322226395,1712896238730,-500.0,0.00027397,2]
[322226396,1712896238739,-616.39,0.00027397,2]
[322226397,1712896238748,-500.0,0.00027397,2]
[322226398,1712896238757,-500.0,0.00027397,2]
[322226399,1712896238766,-500.0,0.00027397,2]
[322226400,1712896238775,-500.78159476,0.00027397,2]
[322226401,1712896238784,-500.0,0.00027397,2]
[322226402,1712896238792,-500.0,0.00027397,2]
[322226403,1712896238801,-500.0,0.00027397,2]
[322226404,1712896238810,-494.92801136,0.00027397,2]
[322226405,1712896238819,-500.0,0.00027397,2]
[322226406,1712896238828,-500.0,0.00027397,2]
[322226407,1712896238837,-500.0,0.00027397,2]
[322226408,1712896238846,-500.0,0.00027397,2]
[322226409,1712896238855,-500.0,0.00027397,2]
[322226410,1712896238864,-597.73304674,0.00027397,2]
[322226411,1712896238873,-500.0,0.00027397,2]
[322226412,1712896238883,-505.44403137,0.00027397,2]
[322226413,1712896238892,-500.0,0.00027397,2]
[322226414,1712896238901,-500.0,0.00027397,2]
[322226416,1712896238911,-339.59751781,0.00027397,2]
[322226418,1712896238921,-500.0,0.00027397,2]
[322226420,1712896238930,-500.0,0.00027397,2]
[322226421,1712896238939,-500.0,0.00027397,2]
[322226422,1712896238948,-500.0,0.00027397,2]
[322226423,1712896238958,-500.0,0.00027397,2]
[322226424,1712896238967,-500.0,0.00027397,2]
[322226425,1712896238977,-500.0,0.00027397,2]
[322226426,1712896238986,-500.0,0.00027397,2]
[322226427,1712896238995,-163.97137486,0.00027397,2]
[322226428,1712896239004,-500.0,0.00027397,2]
[322226429,1712896239013,-501.78367514,0.00027397,2]
[322226430,1712896239022,-515.93867467,0.00027397,2]
[322226431,1712896239031,-500.0,0.00027397,2]
[322226432,1712896239040,-500.0,0.00027397,2]
[322226433,1712896239049,-550.79709322,0.00027397,2]
[322226434,1712896239058,-500.0,0.00027397,2]
[322226435,1712896239067,-322.75022926,0.00027397,2]
[322226436,1712896239076,-500.0,0.00027397,2]
[322226437,1712896239086,-500.0,0.00027397,2]
[322226438,1712896239095,-560.44,0.00027397,2]
[322226439,1712896239144,-500.0,0.00027397,2]
[322226440,1712896239153,-500.0,0.00027397,2]
[322226441,1712896239162,-500.0,0.00027397,2]
[322226442,1712896239171,-500.0,0.00027397,2]
[322226443,1712896239180,-618.85,0.00027397,2]
[322226444,1712896239189,-500.0,0.00027397,2]
[322226445,1712896239198,-500.0,0.00027397,2]
[322226446,1712896239209,-500.0,0.00027397,2]
[322226447,1712896239218,-500.0,0.00027397,2]
[322226448,1712896239227,-607.95,0.00027397,2]
[322226449,1712896239236,-564.35119469,0.00027397,2]
[322226450,1712896239245,-500.0,0.00027397,2]
[322226451,1712896239254,-500.0,0.00027397,2]
[322226452,1712896239263,-500.0,0.00027397,2]
[322226453,1712896239272,-500.0,0.00027397,2]
[322226454,1712896239281,-1280.81,0.00027397,2]
[322226455,1712896239290,-1280.81,0.00027397,2]
[322226456,1712896239300,-1280.81,0.00027397,2]
[322226457,1712896239309,-1280.81,0.00027397,2]
[322226458,1712896239318,-1280.81,0.00027397,2]
[322226459,1712896239327,-500.90855424,0.00027397,2]
[322226460,1712896239337,-1280.9,0.00027397,2]
[322226461,1712896239346,-502.28732736,0.00027397,2]
[322226462,1712896239355,-500.0,0.00027397,2]
[322226463,1712896239364,-500.0,0.00027397,2]
[322226464,1712896239373,-500.0,0.00027397,2]
[322226465,1712896239382,-503.24951674,0.00027397,2]
[322226466,1712896239392,-500.0,0.00027397,2]
[322226467,1712896239401,-500.0,0.00027397,2]
[322226468,1712896239410,-529.54399274,0.00027397,2]
[322226469,1712896239419,-609.04,0.00027397,2]
[322226470,1712896239428,-500.0,0.00027397,2]
[322226471,1712896239437,-500.0,0.00027397,2]
[322226472,1712896239446,-500.0,0.00027397,2]
[322226473,1712896239455,-500.0,0.00027397,2]
[322226474,1712896239466,-501.49976968,0.00027397,2]
[322226475,1712896239478,-500.0,0.00027397,2]
[322226476,1712896239488,-506.31770037,0.00027397,2]
[322226477,1712896239497,-500.0,0.00027397,2]
[322226478,1712896239506,-500.0,0.00027397,2]
[322226479,1712896239516,-500.0,0.00027397,2]
[322226480,1712896239525,-500.0,0.00027397,2]
[322226481,1712896239534,-500.0,0.00027397,2]
[322226482,1712896239544,-501.32366835,0.00027397,2]
[322226483,1712896239553,-500.0,0.00027397,2]
[322226484,1712896239563,-500.0,0.00027397,2]
[322226485,1712896239572,-500.0,0.00027397,2]
[322226486,1712896239581,-625.95,0.00027397,2]
[322226487,1712896239590,-499.702529,0.00027397,2]
[322226488,1712896239599,-630.86,0.00027397,2]
[322226489,1712896239608,-500.0,0.00027397,2]
[322226490,1712896239616,-500.0,0.00027397,2]
[322226491,1712896239625,-500.0,0.00027397,2]
[322226492,1712896239634,-500.0780353,0.00027397,2]
[322226493,1712896239644,-500.0,0.00027397,2]
[322226494,1712896239653,-500.0,0.00027397,2]
[322226495,1712896239664,-262.38914748,0.00027397,2]
[322226496,1712896239674,-500.0,0.00027397,2]
[322226497,1712896239683,-608.61,0.00027397,2]
[322226498,1712896239694,-500.0,0.00027397,2]
[322226499,1712896239706,-503.68905335,0.00027397,2]
[322226500,1712896239715,-500.0,0.00027397,2]
[322226501,1712896239725,-500.0,0.00027397,2]
[322226502,1712896239734,-500.0,0.00027397,2]
[322226503,1712896239744,-500.0,0.00027397,2]
[322226504,1712896239754,-607.23,0.00027397,2]
[322226505,1712896239763,-633.36074283,0.00027397,2]
[322226506,1712896239774,-500.0,0.00027397,2]
[322226507,1712896239783,-500.0,0.00027397,2]
[322226508,1712896239792,-500.0,0.00027397,2]
[322226509,1712896239802,-500.0,0.00027397,2]
[322226510,1712896239811,-500.0,0.00027397,2]
[322226511,1712896239821,-500.0,0.00027397,2]
[322226512,1712896239830,-500.0,0.00027397,2]
[322226513,1712896239839,-500.0,0.00027397,2]
[322226514,1712896239848,-503.40975156,0.00027397,2]
[322226515,1712896239857,-502.65326522,0.00027397,2]
[322226516,1712896239866,-648.31,0.00027397,2]
[322226517,1712896239875,-531.9205392,0.00027397,2]
[322226518,1712896239883,-500.0,0.00027397,2]
[322226519,1712896239892,-500.0,0.00027397,2]
[322226520,1712896239901,-547.44282661,0.00027397,2]
[322226521,1712896239910,-500.0,0.00027397,2]
[322226522,1712896239919,-500.0,0.00027397,2]
[322226523,1712896239928,-621.78,0.00027397,2]
[322226524,1712896239937,-500.0,0.00027397,2]
[322226525,1712896239946,-500.0,0.00027397,2]
[322226526,1712896239955,-500.0,0.00027397,2]
[322226527,1712896239964,-500.0,0.00027397,2]
[322226528,1712896239973,-500.0,0.00027397,2]
[322226529,1712896239982,-500.0,0.00027397,2]
[322226530,1712896239991,-500.0,0.00027397,2]
[322226531,1712896240000,-495.99683321,0.00027397,2]
[322226532,1712896240009,-500.0,0.00027397,2]
[322226533,1712896240018,-500.0,0.00027397,2]
[322226534,1712896240027,-598.70059612,0.00027397,2]
[322226535,1712896240036,-500.0,0.00027397,2]
[322226536,1712896240046,-500.0,0.00027397,2]
[322226537,1712896240054,-500.0,0.00027397,2]
[322226538,1712896240063,-500.0,0.00027397,2]
[322226539,1712896240072,-500.0,0.00027397,2]
[322226540,1712896240081,-500.0,0.00027397,2]
[322226541,1712896240091,-509.91085978,0.00027397,2]
[322226542,1712896240100,-577.96,0.00027397,2]
[322226543,1712896240109,-500.0,0.00027397,2]
[322226544,1712896240119,-515.56488817,0.00027397,2]
[322226545,1712896240127,-500.0,0.00027397,2]
[322226546,1712896240136,-500.0,0.00027397,2]
[322226547,1712896240145,-504.54920398,0.00027397,2]
[322226548,1712896240154,-500.0,0.00027397,2]
[322226549,1712896240164,-504.29109359,0.00027397,2]
[322226550,1712896240173,-500.0,0.00027397,2]
[322226551,1712896240182,-619.05,0.00027397,2]
[322226552,1712896240191,-500.0,0.00027397,2]
[322226553,1712896240200,-537.49,0.00027397,2]
[322226554,1712896240210,-500.0,0.00027397,2]
[322226555,1712896240219,-500.0,0.00027397,2]
[322226556,1712896240227,-503.29527565,0.00027397,2]
[322226557,1712896240236,-500.0,0.00027397,2]
[322226558,1712896240245,-500.0,0.00027397,2]
[322226559,1712896240254,-500.0,0.00027397,2]
[322226560,1712896240262,-500.0,0.00027397,2]
[322226561,1712896240271,-500.0,0.00027397,2]
[322226562,1712896240280,-2292.12,0.00027397,2]
[322226563,1712896240289,-500.0,0.00027397,2]
[322226564,1712896240298,-500.0,0.00027397,2]
[322226565,1712896240306,-500.0,0.00027397,2]
[322226566,1712896240315,-500.0,0.00027397,2]
[322226567,1712896240325,-500.0,0.00027397,2]
[322226568,1712896240334,-500.0,0.00027397,2]
[322226569,1712896240344,-500.0,0.00027397,2]
[322226570,1712896240353,-500.0,0.00027397,2]
[322226571,1712896240362,-503.40274878,0.00027397,2]
[322226572,1712896240371,-503.69807988,0.00027397,2]
[322226573,1712896240380,-500.0,0.00027397,2]
[322226574,1712896240389,-352.69397749,0.00027397,2]
[322226575,1712896240398,-500.0,0.00027397,2]
[322226576,1712896240407,-505.54662381,0.00027397,2]
[322226577,1712896240416,-500.0,0.00027397,2]
[322226578,1712896240426,-516.41535719,0.00027397,2]
[322226579,1712896240435,-500.0,0.00027397,2]
[322226580,1712896240444,-500.0,0.00027397,2]
[322226581,1712896240454,-500.0,0.00027397,2]
[322226582,1712896240464,-500.0,0.00027397,2]
[322226583,1712896240477,-500.0,0.00027397,2]
[322226584,1712896240487,-500.0,0.00027397,2]
[322226585,1712896240496,-500.0,0.00027397,2]
[322226586,1712896240505,-500.0,0.00027397,2]
[322226587,1712896240516,-500.00310001,0.00027397,2]
[322226588,1712896240526,-500.0,0.00027397,2]
[322226589,1712896240535,-500.0,0.00027397,2]
[322226590,1712896240544,-500.0,0.00027397,2]
[322226591,1712896240554,-501.76955876,0.00027397,2]
[322226592,1712896240565,-581.12,0.00027397,2]
[322226593,1712896240574,-500.0,0.00027397,2]
[322226594,1712896240583,-500.0,0.00027397,2]
[322226595,1712896240592,-500.0,0.00027397,2]
[322226596,1712896240601,-500.0,0.00027397,2]
[322226597,1712896240610,-503.99913869,0.00027397,2]
[322226598,1712896240620,-500.0,0.00027397,2]
[322226599,1712896240630,-500.0,0.00027397,2]
[322226600,1712896240639,-500.0,0.00027397,2]
[322226601,1712896240648,-500.0,0.00027397,2]
[322226602,1712896240658,-500.0,0.00027397,2]
[322226603,1712896240667,-500.0,0.00027397,2]
[322226604,1712896240676,-506.62033946,0.00027397,2]
[322226605,1712896240685,-2162.55,0.00027397,2]
[322226606,1712896240694,-514.25153983,0.00027397,2]
[322226607,1712896240704,-502.80670479,0.00027397,2]
[322226608,1712896240714,-504.53796001,0.00027397,2]
[322226609,1712896240723,-500.0,0.00027397,2]
[322226610,1712896240733,-507.05256098,0.00027397,2]
[322226611,1712896240742,-500.0,0.00027397,2]
[322226612,1712896240751,-543.55330504,0.00027397,2]
[322226613,1712896240761,-535.05485549,0.00027397,2]
[322226614,1712896240770,-500.0,0.00027397,2]
[322226615,1712896240779,-500.0,0.00027397,2]
[322226616,1712896240790,-3602.73,0.00027397,2]
[322226617,1712896240799,-500.0,0.00027397,2]
[322226618,1712896240809,-441.19668929,0.00027397,2]
[322226619,1712896240819,-500.0,0.00027397,2]
[322226620,1712896240829,-500.0,0.00027397,2]
[322226621,1712896240838,-500.0,0.00027397,2]
[322226622,1712896240847,-500.0,0.00027397,2]
[322226623,1712896240855,-500.0,0.00027397,2]
[322226624,1712896240864,-500.0,0.00027397,2]
[322226625,1712896240873,-500.0,0.00027397,2]
[322226626,1712896240882,-496.55834126,0.00027397,2]
[322226627,1712896240891,-1794.89,0.00027397,2]
[322226628,1712896240900,-500.0,0.00027397,2]
[322226629,1712896240909,-500.0,0.00027397,2]
[322226630,1712896240918,-500.0,0.00027397,2]
[322226631,1712896240928,-615.95,0.00027397,2]
[322226632,1712896240938,-500.0,0.00027397,2]
[322226633,1712896240947,-9768.5,0.00027397,2]
[322226634,1712896240956,-500.0,0.00027397,2]
[322226635,1712896240965,-500.0,0.00027397,2]
[322226636,1712896240974,-500.0,0.00027397,2]
[322226637,1712896240983,-1028.65,0.00027397,2]
[322226638,1712896240992,-500.89698714,0.00027397,2]
[322226639,1712896241002,-500.0,0.00027397,2]
[322226640,1712896241010,-500.0,0.00027397,2]
[322226641,1712896241019,-500.0,0.00027397,2]
[322226642,1712896241029,-500.0,0.00027397,2]
[322226643,1712896241038,-501.9235196,0.00027397,2]
[322226644,1712896241047,-500.0,0.00027397,2]
[322226645,1712896241056,-3666.64,0.00027397,2]
[322226646,1712896241065,-500.0,0.00027397,2]
[322226647,1712896241075,-500.0,0.00027397,2]
[322226648,1712896241084,-1387.62,0.00027397,2]
[322226649,1712896241093,-500.0,0.00027397,2]
[322226650,1712896241102,-500.0,0.00027397,2]
[322226651,1712896241112,-501.71505716,0.00027397,2]
[322226652,1712896241121,-494.0,0.00027397,2]
[322226653,1712896241130,-500.0,0.00027397,2]
[322226654,1712896241139,-500.0,0.00027397,2]
[322226655,1712896241149,-500.0,0.00027397,2]
[322226656,1712896241158,-500.0,0.00027397,2]
[322226657,1712896241167,-500.0,0.00027397,2]
[322226658,1712896241176,-500.0,0.00027397,2]
[322226659,1712896241185,-500.0,0.00027397,2]
[322226660,1712896241194,-500.0,0.00027397,2]
[322226661,1712896241203,-520.41,0.00027397,2]
[322226662,1712896241214,-500.0,0.00027397,2]
[322226663,1712896241224,-716.23,0.00027397,2]
[322226664,1712896241234,-500.0,0.00027397,2]
[322226665,1712896241244,-508.08236957,0.00027397,2]
[322226666,1712896241254,-500.0,0.00027397,2]
[322226667,1712896241263,-500.0,0.00027397,2]
[322226668,1712896241273,-500.0,0.00027397,2]
[322226669,1712896241282,-500.0,0.00027397,2]
[322226670,1712896241291,-500.0,0.00027397,2]
[322226671,1712896241299,-500.0,0.00027397,2]
[322226672,1712896241308,-500.0,0.00027397,2]
[322226673,1712896241317,-1114.12,0.00027397,2]
[322226674,1712896241327,-509.84935685,0.00027397,2]
[322226675,1712896241336,-500.0,0.00027397,2]
[322226676,1712896241345,-500.0,0.00027397,2]
[322226677,1712896241354,-500.0,0.00027397,2]
[322226678,1712896241363,-500.0,0.00027397,2]
[322226679,1712896241372,-509.42895982,0.00027397,2]
[322226680,1712896241381,-500.0,0.00027397,2]
[322226681,1712896241391,-500.0,0.00027397,2]
[322226682,1712896241400,-500.0,0.00027397,2]
[322226683,1712896241412,-500.0,0.00027397,2]
[322226684,1712896241421,-500.0,0.00027397,2]
[322226685,1712896241431,-505.74157627,0.00027397,2]
[322226686,1712896241441,-500.0,0.00027397,2]
[322226687,1712896241450,-540.64,0.00027397,2]
[322226688,1712896241460,-1962.38,0.00027397,2]
[322226689,1712896241469,-505.11631018,0.00027397,2]
[322226690,1712896241481,-500.0,0.00027397,2]
[322226691,1712896241491,-500.0,0.00027397,2]
[322226692,1712896241501,-500.0,0.00027397,2]
[322226693,1712896241511,-504.09211095,0.00027397,2]
[322226694,1712896241521,-601.38,0.00027397,2]
[322226695,1712896241530,-500.0,0.00027397,2]
[322226696,1712896241539,-535.64698774,0.00027397,2]
[322226697,1712896241549,-500.0,0.00027397,2]
[322226698,1712896241558,-500.0,0.00027397,2]
[322226699,1712896241567,-886.19,0.00027397,2]
[322226700,1712896241576,-509.58171529,0.00027397,2]
[322226701,1712896241586,-500.0,0.00027397,2]
[322226702,1712896241595,-500.0,0.00027397,2]
[322226703,1712896241605,-500.0,0.00027397,2]
[322226704,1712896241615,-500.0,0.00027397,2]
[322226705,1712896241624,-544.52,0.00027397,2]
[322226706,1712896241634,-500.0,0.00027397,2]
[322226707,1712896241643,-500.0,0.00027397,2]
[322226708,1712896241653,-500.0,0.00027397,2]
[322226709,1712896241662,-2362.16,0.00027397,2]
[322226710,1712896241672,-500.0,0.00027397,2]
[322226711,1712896241681,-500.0,0.00027397,2]
[322226712,1712896241691,-500.0,0.00027397,2]
[322226713,1712896241700,-2016.04,0.00027397,2]
[322226714,1712896241711,-500.0,0.00027397,2]
[322226715,1712896241720,-500.0,0.00027397,2]
[322226716,1712896241729,-500.0,0.00027397,2]
[322226717,1712896241739,-500.0,0.00027397,2]
[322226718,1712896241748,-558.01,0.00027397,2]
[322226719,1712896241757,-501.24255169,0.00027397,2]
[322226720,1712896241767,-958.02,0.00027397,2]
[322226721,1712896241776,-500.0,0.00027397,2]
[322226722,1712896241785,-930.02,0.00027397,2]
[322226723,1712896241794,-508.82249404,0.00027397,2]
[322226724,1712896241803,-356.40740385,0.00027397,2]
[322226725,1712896241812,-504.03185547,0.00027397,2]
[322226726,1712896241822,-500.0,0.00027397,2]
[322226727,1712896241831,-500.0,0.00027397,2]
[322226728,1712896241842,-503.7316797,0.00027397,2]
[322226729,1712896241851,-500.0,0.00027397,2]
[322226730,1712896241861,-18588.09,0.00027397,2]
[322226731,1712896241870,-500.0,0.00027397,2]
[322226732,1712896241879,-1749.76,0.00027397,2]
[322226733,1712896241888,-500.0,0.00027397,2]
[322226734,1712896241897,-500.0,0.00027397,2]
[322226735,1712896241906,-1547.07,0.00027397,2]
[322226736,1712896241916,-505.0525569,0.00027397,2]
[322226737,1712896241925,-500.0,0.00027397,2]
[322226738,1712896241934,-500.0,0.00027397,2]
[322226739,1712896241944,-512.35,0.00027397,2]
[322226740,1712896241953,-578.57,0.00027397,2]
[322226741,1712896241963,-2897.0,0.00027397,2]
[322226742,1712896241973,-597.56795475,0.00027397,2]
[322226743,1712896241983,-1868.02,0.00027397,2]
[322226744,1712896241992,-501.99234244,0.00027397,2]
[322226745,1712896242001,-503.04831286,0.00027397,2]
[322226746,1712896242010,-644.38155843,0.00027397,2]
[322226747,1712896242019,-507.70220814,0.00027397,2]
[322226748,1712896242029,-500.0,0.00027397,2]
[322226749,1712896242038,-506.80367675,0.00027397,2]
[322226750,1712896242047,-532.76,0.00027397,2]
[322226751,1712896242057,-500.0,0.00027397,2]
[322226752,1712896242066,-500.0,0.00027397,2]
[322226753,1712896242076,-500.0,0.00027397,2]
[322226754,1712896242085,-500.52236072,0.00027397,2]
[322226755,1712896242094,-616.9,0.00027397,2]
[322226756,1712896242104,-616.9,0.00027397,2]
[322226757,1712896242113,-616.9,0.00027397,2]
[322226758,1712896242122,-500.0,0.00027397,2]
[322226759,1712896242132,-500.0,0.00027397,2]
[322226760,1712896242141,-616.9,0.00027397,2]
[322226762,1712896242151,-616.9,0.00027397,2]
[322226764,1712896242160,-507.56772199,0.00027397,2]
[322226766,1712896242169,-971.47457022,0.00027397,2]
[322226768,1712896242179,-1035.71,0.00027397,2]
[322226770,1712896242188,-500.0,0.00027397,2]
[322226772,1712896242198,-974.99,0.00027397,2]
[322226774,1712896242207,-500.0,0.00027397,2]
[322226776,1712896242217,-517.64286792,0.00027397,2]
[322226778,1712896242227,-505.09000731,0.00027397,2]
[322226780,1712896242236,-1372.94,0.00027397,2]
[322226782,1712896242246,-500.0,0.00027397,2]
[322226783,1712896242255,-500.0,0.00027397,2]
[322226784,1712896242264,-3141.71,0.00027397,2]
[322226785,1712896242274,-500.0,0.00027397,2]
[322226786,1712896242282,-500.0,0.00027397,2]
[322226787,1712896242292,-208.07125794,0.00027397,2]
[322226788,1712896242301,-493.29565521,0.00027397,2]
[322226789,1712896242310,-500.0,0.00027397,2]
[322226791,1712896242319,-505.01179787,0.00027397,2]
[322226792,1712896242328,-943.45,0.00027397,2]
[322226793,1712896242338,-500.0,0.00027397,2]
[322226795,1712896242347,-500.0,0.00027397,2]
[322226797,1712896242357,-500.0,0.00027397,2]